[Event "Early-Titled-Tuesday-Blitz-February-20-2024"]
[Site "Chess.com"]
[Date "2024.02.20"]
[Round "11"]
[White "NastyaHn"]
[Black "Lady_Nika"]
[Result "1-0"]
[WhiteElo "2458"]
[BlackElo "2550"]
[TimeControl "180+1"]
[EndTime "10:10:27 PST"]
[Termination "NastyaHn won on time"]

1. Nc3 {[%clk 0:03:00.9]} 1... d5 {[%clk 0:02:59.3]} 2. e4 {[%clk 0:02:56.4]}
2... d4 {[%clk 0:02:59.3]} 3. Nce2 {[%clk 0:02:56.2]} 3... c5 {[%clk 0:02:59.7]}
4. Ng3 {[%clk 0:02:54.8]} 4... Nc6 {[%clk 0:02:59.4]} 5. Bc4 {[%clk 0:02:51.4]}
5... e5 {[%clk 0:02:49.8]} 6. Nf3 {[%clk 0:02:49.6]} 6... f6 {[%clk 0:02:46.6]}
7. a4 {[%clk 0:02:48.4]} 7... Bd6 {[%clk 0:02:46.5]} 8. d3 {[%clk 0:02:48.7]}
8... Nge7 {[%clk 0:02:46.5]} 9. Nh4 {[%clk 0:02:40.6]} 9... g6 {[%clk
0:02:37.3]} 10. Bh6 {[%clk 0:02:38.2]} 10... Na5 {[%clk 0:02:16.1]} 11. Ba2
{[%clk 0:02:36.8]} 11... c4 {[%clk 0:02:07.4]} 12. dxc4 {[%clk 0:02:35.3]} 12...
Bb4+ {[%clk 0:02:06.9]} 13. Kf1 {[%clk 0:02:34.1]} 13... Be6 {[%clk 0:02:05.8]}
14. Bg7 {[%clk 0:02:31.2]} 14... Rg8 {[%clk 0:02:04.2]} 15. Bxf6 {[%clk
0:02:31.3]} 15... Qc7 {[%clk 0:02:02.9]} 16. Nf3 {[%clk 0:02:15.5]} 16... Bxc4+
{[%clk 0:01:59.7]} 17. Kg1 {[%clk 0:02:01.4]} 17... Bxa2 {[%clk 0:01:56.4]} 18.
Rxa2 {[%clk 0:02:01]} 18... Nac6 {[%clk 0:01:40.5]} 19. h4 {[%clk 0:01:48.6]}
19... Rf8 {[%clk 0:01:33.8]} 20. Bg5 {[%clk 0:01:45.8]} 20... O-O-O {[%clk
0:01:33.5]} 21. h5 {[%clk 0:01:31.1]} 21... Rd7 {[%clk 0:01:33.5]} 22. hxg6
{[%clk 0:01:29.1]} 22... Nxg6 {[%clk 0:01:33.5]} 23. Nf5 {[%clk 0:01:26.5]}
23... Nce7 {[%clk 0:01:24.9]} 24. Ng3 {[%clk 0:01:03.7]} 24... Nc6 {[%clk
0:01:21.2]} 25. Nf5 {[%clk 0:00:55.5]} 25... Nf4 {[%clk 0:01:07.7]} 26. Bxf4
{[%clk 0:00:46.6]} 26... exf4 {[%clk 0:01:07]} 27. Qd3 {[%clk 0:00:44.5]} 27...
Rdf7 {[%clk 0:00:39]} 28. Ra1 {[%clk 0:00:31.4]} 28... Bc5 {[%clk 0:00:20]} 29.
Qc4 {[%clk 0:00:22.8]} 29... b6 {[%clk 0:00:15.9]} 30. Qe6+ {[%clk 0:00:20.5]}
30... Kb8 {[%clk 0:00:14.5]} 31. Rd1 {[%clk 0:00:17.3]} 31... Rf6 {[%clk
0:00:14.7]} 32. Qd5 {[%clk 0:00:16.8]} 32... Rg6 {[%clk 0:00:14.7]} 33. Kf1
{[%clk 0:00:14.2]} 33... Rfg8 {[%clk 0:00:14.9]} 34. Rh2 {[%clk 0:00:14.3]}
34... Nb4 {[%clk 0:00:15.3]} 35. Qb3 {[%clk 0:00:14]} 35... h5 {[%clk
0:00:12.5]} 36. c3 {[%clk 0:00:14.1]} 36... dxc3 {[%clk 0:00:12.6]} 37. bxc3
{[%clk 0:00:14.7]} 37... Nc6 {[%clk 0:00:12.6]} 38. N3h4 {[%clk 0:00:09.3]}
38... Rg4 {[%clk 0:00:12.1]} 39. f3 {[%clk 0:00:09]} 39... R4g5 {[%clk
0:00:11.4]} 40. Qc4 {[%clk 0:00:05.1]} 40... Ne5 {[%clk 0:00:11.6]} 41. Qd5
{[%clk 0:00:05.5]} 41... Nc6 {[%clk 0:00:04.3]} 42. Nh6 {[%clk 0:00:04.9]} 42...
R8g7 {[%clk 0:00:03.8]} 43. N4f5 {[%clk 0:00:04.1]} 43... R7g6 {[%clk
0:00:03.8]} 44. Qc4 {[%clk 0:00:03.1]} 44... Qh7 {[%clk 0:00:01.7]} 45. Qb5
{[%clk 0:00:03.1]} 45... Rxh6 {[%clk 0:00:02.1]} 46. Nxh6 {[%clk 0:00:02.1]}
46... Qxh6 {[%clk 0:00:03]} 47. Rd5 {[%clk 0:00:01.7]} 47... Qe6 {[%clk
0:00:03.9]} 48. Rxg5 {[%clk 0:00:01.4]} 48... Qa2 {[%clk 0:00:04.2]} 49. Rd5
{[%clk 0:00:02]} 49... Qa1+ {[%clk 0:00:04.4]} 50. Ke2 {[%clk 0:00:02.5]} 50...
Qa2+ {[%clk 0:00:04.9]} 51. Rd2 {[%clk 0:00:02.1]} 51... Qe6 {[%clk 0:00:05.3]}
52. Qd3 {[%clk 0:00:01.8]} 52... Qg6 {[%clk 0:00:05.5]} 53. Qd5 {[%clk
0:00:02.1]} 53... Qg3 {[%clk 0:00:04.2]} 54. Qxh5 {[%clk 0:00:02.2]} 54... Qf2+
{[%clk 0:00:04.3]} 55. Kd1 {[%clk 0:00:02.9]} 55... Qf1+ {[%clk 0:00:04.6]} 56.
Kc2 {[%clk 0:00:03.5]} 56... Qc4 {[%clk 0:00:04.1]} 57. Qe8+ {[%clk 0:00:03.8]}
57... Kb7 {[%clk 0:00:04.6]} 58. Rh7+ {[%clk 0:00:04.3]} 58... Ka6 {[%clk
0:00:04.6]} 59. Qf7 {[%clk 0:00:04.6]} 59... Qxa4+ {[%clk 0:00:04.5]} 60. Qb3
{[%clk 0:00:04.6]} 60... Qa5 {[%clk 0:00:04.7]} 61. Qc4+ {[%clk 0:00:04.7]}
61... b5 {[%clk 0:00:02.9]} 62. Qxc5 {[%clk 0:00:05]} 62... Qa2+ {[%clk
0:00:03.3]} 63. Kd3 {[%clk 0:00:05.1]} 63... Qb1+ {[%clk 0:00:02.4]} 64. Ke2
{[%clk 0:00:05.2]} 64... Na5 {[%clk 0:00:01.3]} 65. Qd6+ {[%clk 0:00:05.2]} 1-0

[Event "Early-Titled-Tuesday-Blitz-February-20-2024"]
[Site "Chess.com"]
[Date "2024.02.20"]
[Round "11"]
[White "IndianSchoolOfSuffering"]
[Black "SaiAgni_98"]
[Result "1/2-1/2"]
[WhiteElo "2442"]
[BlackElo "2556"]
[TimeControl "180+1"]
[EndTime "10:10:31 PST"]
[Termination "Game drawn by stalemate"]

1. e4 {[%clk 0:02:53]} 1... d6 {[%clk 0:02:59.2]} 2. d4 {[%clk 0:02:51]} 2...
Nf6 {[%clk 0:02:59.8]} 3. Nc3 {[%clk 0:02:49.7]} 3... Nbd7 {[%clk 0:03:00.6]} 4.
Nf3 {[%clk 0:02:48.1]} 4... e5 {[%clk 0:03:01.3]} 5. Bc4 {[%clk 0:02:47.4]} 5...
Be7 {[%clk 0:03:01.6]} 6. O-O {[%clk 0:02:46.4]} 6... O-O {[%clk 0:03:02]} 7. a4
{[%clk 0:02:46.1]} 7... c6 {[%clk 0:03:02.3]} 8. h3 {[%clk 0:02:44.9]} 8... Qc7
{[%clk 0:02:55.2]} 9. Be3 {[%clk 0:02:41.9]} 9... b6 {[%clk 0:02:55.3]} 10. Re1
{[%clk 0:02:40.8]} 10... a6 {[%clk 0:02:55.2]} 11. Ba2 {[%clk 0:02:40.2]} 11...
Bb7 {[%clk 0:02:52.7]} 12. Qd2 {[%clk 0:02:34.8]} 12... b5 {[%clk 0:02:51.2]}
13. Bg5 {[%clk 0:02:24.4]} 13... b4 {[%clk 0:02:46.6]} 14. Nd1 {[%clk
0:02:20.7]} 14... c5 {[%clk 0:02:42.2]} 15. d5 {[%clk 0:02:18.4]} 15... Nb6
{[%clk 0:02:39.6]} 16. a5 {[%clk 0:02:15.4]} 16... Nc8 {[%clk 0:02:32.8]} 17.
Bc4 {[%clk 0:02:14.5]} 17... Nh5 {[%clk 0:02:28.4]} 18. Ne3 {[%clk 0:01:57.8]}
18... Bxg5 {[%clk 0:02:20.2]} 19. Nxg5 {[%clk 0:01:57.4]} 19... h6 {[%clk
0:02:18]} 20. Nf3 {[%clk 0:01:56.3]} 20... Qe7 {[%clk 0:02:13.7]} 21. g3 {[%clk
0:01:45.1]} 21... Qf6 {[%clk 0:02:11.9]} 22. Kg2 {[%clk 0:01:44.8]} 22... Ne7
{[%clk 0:02:08.7]} 23. Ng4 {[%clk 0:01:39.9]} 23... Qg6 {[%clk 0:02:06]} 24. Nh4
{[%clk 0:01:39.3]} 24... Qh7 {[%clk 0:01:59.4]} 25. Ne3 {[%clk 0:01:23.6]} 25...
Qxe4+ {[%clk 0:01:56.9]} 26. f3 {[%clk 0:01:21.3]} 26... Qd4 {[%clk 0:01:40.9]}
27. Qxd4 {[%clk 0:01:17.2]} 27... cxd4 {[%clk 0:01:38.5]} 28. Nef5 {[%clk
0:01:16.4]} 28... Nxf5 {[%clk 0:01:26.3]} 29. Nxf5 {[%clk 0:01:17.3]} 29... Rfd8
{[%clk 0:01:26.6]} 30. Ra4 {[%clk 0:01:13.8]} 30... g6 {[%clk 0:01:07]} 31. Rxb4
{[%clk 0:01:09]} 31... gxf5 {[%clk 0:01:06.6]} 32. Rxb7 {[%clk 0:01:07.9]} 32...
f4 {[%clk 0:01:06.7]} 33. g4 {[%clk 0:01:04.5]} 33... Nf6 {[%clk 0:01:01.8]} 34.
Ra1 {[%clk 0:00:52.8]} 34... Rdc8 {[%clk 0:00:53.3]} 35. b3 {[%clk 0:00:51.3]}
35... Rc5 {[%clk 0:00:53.5]} 36. Ra4 {[%clk 0:00:42.7]} 36... Nxd5 {[%clk
0:00:52.3]} 37. Bxd5 {[%clk 0:00:42.3]} 37... Rxd5 {[%clk 0:00:53.2]} 38. Kf2
{[%clk 0:00:39.7]} 38... Rc5 {[%clk 0:00:53.1]} 39. Rc4 {[%clk 0:00:33.3]} 39...
Rxc4 {[%clk 0:00:51.5]} 40. bxc4 {[%clk 0:00:34.2]} 40... Rc8 {[%clk 0:00:52.1]}
41. Rb4 {[%clk 0:00:32.8]} 41... Rc5 {[%clk 0:00:52.2]} 42. Ra4 {[%clk
0:00:30.7]} 42... d5 {[%clk 0:00:49.6]} 43. cxd5 {[%clk 0:00:29.2]} 43... Rxc2+
{[%clk 0:00:49.8]} 44. Ke1 {[%clk 0:00:29.1]} 44... Rc5 {[%clk 0:00:45.2]} 45.
d6 {[%clk 0:00:28.7]} 45... Rd5 {[%clk 0:00:45.5]} 46. Rb4 {[%clk 0:00:27.1]}
46... Rxd6 {[%clk 0:00:44.5]} 47. Rb6 {[%clk 0:00:26.4]} 47... Rd5 {[%clk
0:00:40]} 48. Rxa6 {[%clk 0:00:25.6]} 48... Kg7 {[%clk 0:00:39.7]} 49. Kd2
{[%clk 0:00:25.7]} 49... Rb5 {[%clk 0:00:39.7]} 50. Kd3 {[%clk 0:00:23.4]} 50...
Rb3+ {[%clk 0:00:39.7]} 51. Ke4 {[%clk 0:00:23.3]} 51... Re3+ {[%clk 0:00:39.9]}
52. Kf5 {[%clk 0:00:22.5]} 52... e4 {[%clk 0:00:20.7]} 53. Kxf4 {[%clk
0:00:20.4]} 53... exf3 {[%clk 0:00:21.3]} 54. Kg3 {[%clk 0:00:19.9]} 54... Ra3
{[%clk 0:00:17.9]} 55. Rd6 {[%clk 0:00:19]} 55... Rxa5 {[%clk 0:00:17.7]} 56.
Rxd4 {[%clk 0:00:19.1]} 56... Ra3 {[%clk 0:00:18.4]} 57. Rf4 {[%clk 0:00:19.2]}
57... Kg6 {[%clk 0:00:19]} 58. Rxf3 {[%clk 0:00:19.3]} 58... Ra1 {[%clk
0:00:18.6]} 59. h4 {[%clk 0:00:19]} 59... Ra4 {[%clk 0:00:17.1]} 60. h5+ {[%clk
0:00:19.9]} 60... Kg7 {[%clk 0:00:16.9]} 61. Rf5 {[%clk 0:00:20.1]} 61... Ra3+
{[%clk 0:00:16.9]} 62. Rf3 {[%clk 0:00:18.9]} 62... Ra4 {[%clk 0:00:17.8]} 63.
Rf4 {[%clk 0:00:19]} 63... Ra6 {[%clk 0:00:15.4]} 64. Rf3 {[%clk 0:00:19.9]}
64... Kf8 {[%clk 0:00:15.8]} 65. Rf4 {[%clk 0:00:20.5]} 65... Ke7 {[%clk
0:00:16.3]} 66. Rf3 {[%clk 0:00:21.4]} 66... Re6 {[%clk 0:00:16.6]} 67. Rf4
{[%clk 0:00:22.3]} 67... Kf8 {[%clk 0:00:16.3]} 68. Rf3 {[%clk 0:00:23.2]} 68...
Kg7 {[%clk 0:00:16.9]} 69. Rf4 {[%clk 0:00:24.1]} 69... Re5 {[%clk 0:00:17.5]}
70. Rf3 {[%clk 0:00:25]} 70... Rg5 {[%clk 0:00:18.2]} 71. Rf4 {[%clk 0:00:24.6]}
71... f6 {[%clk 0:00:18.5]} 72. Kf3 {[%clk 0:00:24.9]} 72... Kf7 {[%clk
0:00:18.9]} 73. Kg3 {[%clk 0:00:25.8]} 73... Ke6 {[%clk 0:00:19.6]} 74. Rf3
{[%clk 0:00:26.3]} 74... Ke5 {[%clk 0:00:20.1]} 75. Rf4 {[%clk 0:00:26.1]} 75...
f5 {[%clk 0:00:19.8]} 76. Rxf5+ {[%clk 0:00:25.9]} 76... Rxf5 {[%clk 0:00:20.2]}
77. gxf5 {[%clk 0:00:25.7]} 77... Kxf5 {[%clk 0:00:21.1]} 78. Kh3 {[%clk
0:00:26]} 78... Kg5 {[%clk 0:00:21.7]} 79. Kg3 {[%clk 0:00:26.9]} 79... Kxh5
{[%clk 0:00:22.4]} 80. Kh3 {[%clk 0:00:27.7]} 80... Kg5 {[%clk 0:00:23.3]} 81.
Kg3 {[%clk 0:00:28.4]} 81... h5 {[%clk 0:00:23.6]} 82. Kh3 {[%clk 0:00:29.3]}
82... h4 {[%clk 0:00:24.5]} 83. Kg2 {[%clk 0:00:29.6]} 83... Kg4 {[%clk
0:00:25.4]} 84. Kh2 {[%clk 0:00:30.2]} 84... Kh5 {[%clk 0:00:26]} 85. Kg2 {[%clk
0:00:30.8]} 85... Kg5 {[%clk 0:00:26.9]} 86. Kh2 {[%clk 0:00:31.4]} 86... Kg4
{[%clk 0:00:27.8]} 87. Kg2 {[%clk 0:00:32.1]} 87... h3+ {[%clk 0:00:28.5]} 88.
Kh2 {[%clk 0:00:33]} 88... Kh4 {[%clk 0:00:29.4]} 89. Kg1 {[%clk 0:00:33]} 89...
Kg3 {[%clk 0:00:30]} 90. Kh1 {[%clk 0:00:33.9]} 90... Kf3 {[%clk 0:00:30.4]} 91.
Kh2 {[%clk 0:00:33.8]} 91... Kg4 {[%clk 0:00:31.3]} 92. Kh1 {[%clk 0:00:33.8]}
92... Kg3 {[%clk 0:00:32.1]} 93. Kg1 {[%clk 0:00:34.1]} 93... h2+ {[%clk
0:00:33]} 94. Kh1 {[%clk 0:00:34.6]} 94... Kh3 {[%clk 0:00:33.3]} 1/2-1/2

[Event "Early-Titled-Tuesday-Blitz-February-20-2024"]
[Site "Chess.com"]
[Date "2024.02.20"]
[Round "11"]
[White "Dewarfd"]
[Black "martinmena"]
[Result "1-0"]
[WhiteElo "2157"]
[BlackElo "2192"]
[TimeControl "180+1"]
[EndTime "10:10:53 PST"]
[Termination "Dewarfd won by checkmate"]

1. d4 {[%clk 0:02:59.4]} 1... d5 {[%clk 0:02:59.2]} 2. e3 {[%clk 0:02:59]} 2...
Nf6 {[%clk 0:02:58]} 3. Nf3 {[%clk 0:02:59]} 3... e6 {[%clk 0:02:57.8]} 4. Bd3
{[%clk 0:02:58.3]} 4... Bd6 {[%clk 0:02:58]} 5. O-O {[%clk 0:02:56.1]} 5... O-O
{[%clk 0:02:57.5]} 6. b3 {[%clk 0:02:55.8]} 6... b6 {[%clk 0:02:56.1]} 7. Nbd2
{[%clk 0:02:54.2]} 7... Bb7 {[%clk 0:02:55.6]} 8. Ba3 {[%clk 0:02:52.7]} 8...
Bxa3 {[%clk 0:02:54.2]} 9. c4 {[%clk 0:02:51.8]} 9... Bd6 {[%clk 0:02:52]} 10.
Rc1 {[%clk 0:02:48.8]} 10... c5 {[%clk 0:02:50.4]} 11. cxd5 {[%clk 0:02:48]}
11... Nxd5 {[%clk 0:02:48.4]} 12. e4 {[%clk 0:02:46.9]} 12... Nf4 {[%clk
0:02:46.7]} 13. Bb1 {[%clk 0:02:46.2]} 13... cxd4 {[%clk 0:02:34.2]} 14. Nxd4
{[%clk 0:02:43.2]} 14... Bc5 {[%clk 0:02:30]} 15. N4f3 {[%clk 0:02:35.4]} 15...
Ba6 {[%clk 0:02:24.9]} 16. Re1 {[%clk 0:02:34.8]} 16... Bd3 {[%clk 0:02:20.9]}
17. Ne5 {[%clk 0:02:06.6]} 17... Qd4 {[%clk 0:02:01.5]} 18. Rxc5 {[%clk
0:01:31]} 18... bxc5 {[%clk 0:01:57.2]} 19. Ndf3 {[%clk 0:01:30.4]} 19... Qd6
{[%clk 0:01:21.2]} 20. Nxd3 {[%clk 0:01:23.3]} 20... Nxd3 {[%clk 0:01:19.3]} 21.
e5 {[%clk 0:01:14]} 21... Qd7 {[%clk 0:01:00.7]} 22. Bxd3 {[%clk 0:01:13.5]}
22... Rd8 {[%clk 0:00:59.8]} 23. Re3 {[%clk 0:01:13.6]} 23... g6 {[%clk
0:00:51.2]} 24. Ng5 {[%clk 0:01:09.4]} 24... Qd4 {[%clk 0:00:39.3]} 25. Qf3
{[%clk 0:00:45.3]} 25... Qd7 {[%clk 0:00:10.7]} 26. Ne4 {[%clk 0:00:34.8]} 26...
Kg7 {[%clk 0:00:06.1]} 27. Nf6 {[%clk 0:00:34.5]} 27... Qc6 {[%clk 0:00:04.4]}
28. Be4 {[%clk 0:00:20.2]} 28... Qa6 {[%clk 0:00:03.9]} 29. Bxa8 {[%clk
0:00:17.1]} 29... Qxa2 {[%clk 0:00:04.3]} 30. h4 {[%clk 0:00:16.5]} 30... Qb1+
{[%clk 0:00:04.3]} 31. Kh2 {[%clk 0:00:14.9]} 31... Rd1 {[%clk 0:00:04.4]} 32.
Ng4 {[%clk 0:00:13.2]} 32... Rh1+ {[%clk 0:00:03.7]} 33. Kg3 {[%clk 0:00:13.5]}
33... Qf5 {[%clk 0:00:02.4]} 34. Qxf5 {[%clk 0:00:12.2]} 34... gxf5 {[%clk
0:00:03.1]} 35. Nh2 {[%clk 0:00:11.6]} 35... Rb1 {[%clk 0:00:02]} 36. Nf3 {[%clk
0:00:11.7]} 36... Nd7 {[%clk 0:00:02.5]} 37. Bc6 {[%clk 0:00:09.8]} 37... Nb6
{[%clk 0:00:02.1]} 38. Bb5 {[%clk 0:00:09.3]} 38... Nd5 {[%clk 0:00:03]} 39. Rd3
{[%clk 0:00:08.8]} 39... f4+ {[%clk 0:00:03.8]} 40. Kh2 {[%clk 0:00:08.8]} 40...
Rf1 {[%clk 0:00:04]} 41. Rd2 {[%clk 0:00:07.8]} 41... Rb1 {[%clk 0:00:03.7]} 42.
Bc4 {[%clk 0:00:07.5]} 42... a5 {[%clk 0:00:03.5]} 43. Bxd5 {[%clk 0:00:07.7]}
43... exd5 {[%clk 0:00:04.4]} 44. Rxd5 {[%clk 0:00:08]} 44... c4 {[%clk
0:00:04.7]} 45. bxc4 {[%clk 0:00:07.9]} 45... a4 {[%clk 0:00:05.6]} 46. Ra5
{[%clk 0:00:07.9]} 46... Rb4 {[%clk 0:00:05.8]} 47. c5 {[%clk 0:00:06.7]} 47...
Rc4 {[%clk 0:00:05.9]} 48. Ng5 {[%clk 0:00:06.1]} 48... a3 {[%clk 0:00:04.9]}
49. Rxa3 {[%clk 0:00:05.8]} 49... Rxc5 {[%clk 0:00:05.5]} 50. Nf3 {[%clk
0:00:05.7]} 50... h6 {[%clk 0:00:04.9]} 51. Kh3 {[%clk 0:00:05.6]} 51... Rc4
{[%clk 0:00:05.1]} 52. Kg4 {[%clk 0:00:05.4]} 52... Kg6 {[%clk 0:00:05.4]} 53.
Ra6+ {[%clk 0:00:05.3]} 53... Kg7 {[%clk 0:00:04.7]} 54. Ra7 {[%clk 0:00:05.3]}
54... Rc3 {[%clk 0:00:03.6]} 55. e6 {[%clk 0:00:05.2]} 55... Kf8 {[%clk
0:00:03.4]} 56. Rxf7+ {[%clk 0:00:05.1]} 56... Ke8 {[%clk 0:00:03.8]} 57. Kf5
{[%clk 0:00:05.5]} 57... Rc5+ {[%clk 0:00:03.7]} 58. Kf6 {[%clk 0:00:05.7]}
58... Rc6 {[%clk 0:00:03.4]} 59. Ne5 {[%clk 0:00:04.8]} 59... Rc5 {[%clk
0:00:01.9]} 60. Rh7 {[%clk 0:00:04.7]} 60... Kd8 {[%clk 0:00:01.8]} 61. Rh8+
{[%clk 0:00:04]} 61... Kc7 {[%clk 0:00:02.7]} 62. e7 {[%clk 0:00:04.3]} 62...
Rxe5 {[%clk 0:00:02.9]} 63. Kxe5 {[%clk 0:00:04.5]} 63... Kb6 {[%clk 0:00:03.5]}
64. e8=Q {[%clk 0:00:05.4]} 64... f3 {[%clk 0:00:04.4]} 65. gxf3 {[%clk
0:00:05]} 65... h5 {[%clk 0:00:05.3]} 66. Rh6+ {[%clk 0:00:05.2]} 66... Kc5
{[%clk 0:00:05.2]} 67. Qe6 {[%clk 0:00:05]} 67... Kb4 {[%clk 0:00:05.4]} 68.
Qb6+ {[%clk 0:00:05.1]} 68... Kc3 {[%clk 0:00:06.3]} 69. Qd4+ {[%clk 0:00:04.4]}
69... Kb3 {[%clk 0:00:05.5]} 70. Rc6 {[%clk 0:00:03.5]} 70... Ka3 {[%clk
0:00:04.8]} 71. Qb6 {[%clk 0:00:01.8]} 71... Ka2 {[%clk 0:00:04.8]} 72. Rc7
{[%clk 0:00:02.1]} 72... Ka1 {[%clk 0:00:04.9]} 73. Ra7# {[%clk 0:00:03]} 1-0

[Event "Early-Titled-Tuesday-Blitz-February-20-2024"]
[Site "Chess.com"]
[Date "2024.02.20"]
[Round "11"]
[White "klimkoj"]
[Black "Salem-AR"]
[Result "1-0"]
[WhiteElo "2894"]
[BlackElo "2980"]
[TimeControl "180+1"]
[EndTime "10:11:03 PST"]
[Termination "klimkoj won by resignation"]

1. Nf3 {[%clk 0:02:56.4]} 1... c5 {[%clk 0:02:59.7]} 2. e4 {[%clk 0:02:46.3]}
2... d6 {[%clk 0:02:59]} 3. d4 {[%clk 0:02:45.9]} 3... cxd4 {[%clk 0:02:59.9]}
4. Nxd4 {[%clk 0:02:46.8]} 4... Nf6 {[%clk 0:03:00.7]} 5. Nc3 {[%clk 0:02:47.4]}
5... Nc6 {[%clk 0:03:01.5]} 6. f3 {[%clk 0:02:44.7]} 6... g6 {[%clk 0:02:58.6]}
7. Be3 {[%clk 0:02:43.2]} 7... Bg7 {[%clk 0:02:59.3]} 8. Qd2 {[%clk 0:02:43.4]}
8... h5 {[%clk 0:02:56.2]} 9. O-O-O {[%clk 0:02:42.4]} 9... Bd7 {[%clk 0:02:56]}
10. Kb1 {[%clk 0:02:39.7]} 10... Rc8 {[%clk 0:02:56.5]} 11. f4 {[%clk
0:02:33.7]} 11... a6 {[%clk 0:02:43.1]} 12. f5 {[%clk 0:02:29.8]} 12... Ne5
{[%clk 0:02:35.9]} 13. Bg5 {[%clk 0:02:19]} 13... gxf5 {[%clk 0:01:58.6]} 14.
Nxf5 {[%clk 0:02:11.6]} 14... Bxf5 {[%clk 0:01:57.4]} 15. exf5 {[%clk
0:02:12.5]} 15... Kf8 {[%clk 0:01:45.5]} 16. Bxf6 {[%clk 0:01:57]} 16... Bxf6
{[%clk 0:01:44.9]} 17. Nd5 {[%clk 0:01:57.9]} 17... Nd7 {[%clk 0:01:33.1]} 18.
Qe3 {[%clk 0:01:47.6]} 18... Be5 {[%clk 0:01:32.3]} 19. Be2 {[%clk 0:01:42.4]}
19... Nf6 {[%clk 0:01:32.7]} 20. Nb6 {[%clk 0:01:40.1]} 20... Rc6 {[%clk
0:01:15.7]} 21. Nc4 {[%clk 0:01:37.5]} 21... Qc7 {[%clk 0:01:16.4]} 22. Nxe5
{[%clk 0:01:28.7]} 22... dxe5 {[%clk 0:01:17.3]} 23. c3 {[%clk 0:01:28.2]} 23...
e4 {[%clk 0:01:17.4]} 24. g3 {[%clk 0:01:21.2]} 24... Rc5 {[%clk 0:00:58.5]} 25.
Rhf1 {[%clk 0:01:13.4]} 25... a5 {[%clk 0:00:56.3]} 26. h3 {[%clk 0:01:13.6]}
26... b6 {[%clk 0:00:55.5]} 27. g4 {[%clk 0:01:12.6]} 27... hxg4 {[%clk
0:00:50.1]} 28. hxg4 {[%clk 0:01:13.5]} 28... Rh2 {[%clk 0:00:45.3]} 29. g5
{[%clk 0:01:10]} 29... Nd5 {[%clk 0:00:44.6]} 30. Qxe4 {[%clk 0:01:08.6]} 30...
Qc6 {[%clk 0:00:33.4]} 31. Qd4 {[%clk 0:00:40.3]} 31... Ke8 {[%clk 0:00:20.2]}
32. Rd2 {[%clk 0:00:33.2]} 32... Qd6 {[%clk 0:00:09.7]} 33. Rfd1 {[%clk
0:00:23.7]} 33... Qg3 {[%clk 0:00:03.7]} 34. Bc4 {[%clk 0:00:18.1]} 34... Rh4
{[%clk 0:00:03.5]} 35. Qg7 {[%clk 0:00:10.2]} 35... Rhxc4 {[%clk 0:00:02.6]} 36.
Qg8+ {[%clk 0:00:04.9]} 36... Kd7 {[%clk 0:00:02.8]} 37. Rxd5+ {[%clk
0:00:05.7]} 37... Rxd5 {[%clk 0:00:03.6]} 38. Rxd5+ {[%clk 0:00:06.6]} 38... Kc6
{[%clk 0:00:04.3]} 39. Rd1 {[%clk 0:00:06.9]} 39... Qf3 {[%clk 0:00:04.9]} 40.
Qc8+ {[%clk 0:00:05.8]} 40... Kb5 {[%clk 0:00:05.2]} 41. a4+ {[%clk 0:00:05.9]}
41... Rxa4 {[%clk 0:00:03.7]} 42. Qd7+ {[%clk 0:00:06.3]} 42... Ka6 {[%clk
0:00:04.2]} 43. Qc8+ {[%clk 0:00:04.9]} 43... Qb7 {[%clk 0:00:03]} 44. Qxb7+
{[%clk 0:00:04.5]} 44... Kxb7 {[%clk 0:00:03.9]} 45. Rd7+ {[%clk 0:00:05.2]}
45... Kc6 {[%clk 0:00:04.7]} 46. Rxe7 {[%clk 0:00:06]} 46... Rg4 {[%clk
0:00:05]} 47. Rxf7 {[%clk 0:00:03.9]} 47... Rxg5 {[%clk 0:00:05.7]} 48. f6
{[%clk 0:00:04.6]} 48... Rf5 {[%clk 0:00:06]} 49. Rf8 {[%clk 0:00:05]} 49... a4
{[%clk 0:00:05.7]} 50. Ka2 {[%clk 0:00:03.7]} 50... Rf2 {[%clk 0:00:04.5]} 51.
Ka3 {[%clk 0:00:04]} 51... Kb7 {[%clk 0:00:05.2]} 52. f7 {[%clk 0:00:03.8]}
52... b5 {[%clk 0:00:05.5]} 53. Ka2 {[%clk 0:00:02]} 53... Ka7 {[%clk
0:00:06.2]} 54. Kb1 {[%clk 0:00:02.2]} 54... Kb7 {[%clk 0:00:06.8]} 55. Kc1
{[%clk 0:00:02.8]} 55... Ka7 {[%clk 0:00:07.3]} 56. Kd1 {[%clk 0:00:03.4]} 56...
Kb7 {[%clk 0:00:07.7]} 57. Ke1 {[%clk 0:00:03.9]} 57... Rf6 {[%clk 0:00:07.8]}
58. Ke2 {[%clk 0:00:04.3]} 58... Ka7 {[%clk 0:00:07.7]} 59. Ke3 {[%clk
0:00:04.8]} 59... Kb7 {[%clk 0:00:08.4]} 60. Ke4 {[%clk 0:00:05.3]} 60... Rf2
{[%clk 0:00:08.5]} 61. Kd5 {[%clk 0:00:05.4]} 61... Ka7 {[%clk 0:00:08.4]} 62.
Kc6 {[%clk 0:00:05.6]} 62... Rf5 {[%clk 0:00:07.8]} 63. Kc7 {[%clk 0:00:04.4]}
63... Rf2 {[%clk 0:00:07.5]} 64. Kc6 {[%clk 0:00:04.4]} 64... Rf5 {[%clk
0:00:07.7]} 65. Kd6 {[%clk 0:00:03.7]} 65... Rf2 {[%clk 0:00:07.8]} 66. Kd7
{[%clk 0:00:04.3]} 66... Kb7 {[%clk 0:00:07.6]} 67. Ke6 {[%clk 0:00:04.3]} 67...
Re2+ {[%clk 0:00:07.7]} 68. Kd5 {[%clk 0:00:05]} 68... Rf2 {[%clk 0:00:07.6]}
69. Kc5 {[%clk 0:00:05.4]} 69... Ka7 {[%clk 0:00:08.1]} 70. Kxb5 {[%clk
0:00:05.7]} 70... Rxb2+ {[%clk 0:00:08.2]} 71. Kxa4 {[%clk 0:00:06.4]} 71... Rf2
{[%clk 0:00:06.1]} 72. c4 {[%clk 0:00:06.8]} 72... Kb7 {[%clk 0:00:05.9]} 73. c5
{[%clk 0:00:07.3]} 73... Rf6 {[%clk 0:00:06]} 74. Kb4 {[%clk 0:00:07.4]} 74...
Ka7 {[%clk 0:00:06.2]} 75. Kb5 {[%clk 0:00:07.8]} 75... Rf5 {[%clk 0:00:06.4]}
76. Kc4 {[%clk 0:00:08.1]} 76... Rf1 {[%clk 0:00:06.5]} 77. c6 {[%clk
0:00:08.1]} 77... Rf2 {[%clk 0:00:05.4]} 78. Kd3 {[%clk 0:00:06]} 78... Rf3+
{[%clk 0:00:05.2]} 79. Ke4 {[%clk 0:00:06]} 79... Rf1 {[%clk 0:00:05.4]} 80. c7
{[%clk 0:00:06.4]} 80... Re1+ {[%clk 0:00:06.1]} 81. Kf3 {[%clk 0:00:06.2]}
81... Rf1+ {[%clk 0:00:06.4]} 82. Ke2 {[%clk 0:00:06.5]} 82... Rf6 {[%clk
0:00:02.7]} 83. c8=Q {[%clk 0:00:06.4]} 83... Rc6 {[%clk 0:00:03.6]} 84. Qa8+
{[%clk 0:00:06.1]} 1-0